bitfinex/quotes_ETHUSD_20210701
["timestamp","ask_amount","ask_price","bid_price","bid_amount"]
[1625147384632,20.2673241,2117.9,2117.4,0.1]
[1625147385068,13.1881441,2117.9,2117.0,9.43798]
[1625147385166,13.1881441,2117.9,2117.2,0.15]
[1625147385264,13.1881441,2117.9,2116.7,11.93782822]
[1625147385365,13.1881441,2117.9,2117.2,0.15]
[1625147385569,11.5804441,2117.9,2117.2,0.15]
[1625147385665,18.6596841,2117.9,2117.2,0.15]
[1625147385768,11.5804441,2117.9,2117.2,0.15]
[1625147385867,3.53997,2117.8,2117.2,0.15]
[1625147385970,3.54001,2117.6,2117.2,0.15]
[1625147386872,3.54001,2117.5,2117.2,0.15]
[1625147387316,3.54001,2117.5,2116.9,0.15]
[1625147389221,4.74441,2117.5,2116.9,0.15]
[1625147389353,4.74441,2117.5,2116.4,9.43875]
[1625147389445,3.5404882,2117.2,2116.4,9.43875]
[1625147389542,7.5417882,2117.2,2116.6,0.15]
[1625147389642,7.5417882,2117.2,2116.0,10.7179]
[1625147389837,4.0133972,2117.2,2116.3,0.15]
[1625147390419,3.5410763,2117.0,2116.3,0.15]
[1625147390528,3.54139,2116.7,2116.3,0.15]
[1625147390621,7.58079,2116.7,2116.3,0.15]
[1625147393025,4.77956783,2116.7,2116.3,0.15]
[1625147394224,4.77956783,2116.7,2115.7,11.80004]
[1625147394225,8.32111063,2116.7,2115.7,11.80004]
[1625147394327,8.32111063,2116.7,2116.1,0.15]
[1625147394772,8.20300165,2116.7,2116.1,0.15]
[1625147395930,7.08364,2116.6,2116.1,0.15]
[1625147398226,7.08364,2116.6,2115.7,0.15]
[1625147398343,0.06,2116.5,2115.7,0.1]
[1625147398446,7.08474,2116.2,2115.7,0.1]
[1625147398541,10.91544,2116.2,2115.7,0.1]
[1625147398794,7.3730689,2116.2,2115.7,0.1]
[1625147399889,10.9155189,2116.2,2115.7,0.1]
[1625147400240,10.9078284,2116.2,2115.7,0.1]
[1625147400769,3.8307,2116.2,2115.7,7.18343]
[1625147401522,3.8307,2116.2,2115.7,9.68316822]
[1625147401619,3.5416017,2116.5,2115.7,7.28711022]
[1625147401727,3.5416017,2116.5,2115.8,0.15]
[1625147401978,4.0013,2117.2,2115.8,0.15]
[1625147401979,31.3841,2116.9,2116.1,7.08204]
[1625147402222,10.1033,2116.9,2116.1,7.08204]
[1625147402323,3.54095,2117.1,2116.2,0.15]
[1625147402724,3.5410152,2116.9,2116.2,0.15]
[1625147403122,3.5410152,2116.9,2116.2,7.18175]
[1625147403223,3.54095,2117.1,2116.2,7.18175]
[1625147403418,3.54095,2117.1,2116.2,9.68148822]
[1625147403769,3.54095,2117.1,2116.2,9.63148822]
[1625147404886,3.5409417,2117.0,2116.2,0.05]
[1625147405103,10.2216417,2117.0,2115.5,13.66386842]
[1625147405195,10.2216417,2117.0,2115.5,11.1641302]
[1625147405345,0.16,2116.9,2115.6,0.15]
[1625147405448,3.54188,2116.5,2115.6,0.15]
[1625147405545,3.5116974,2116.3,2115.6,0.15]
[1625147406146,1.0743,2116.4,2115.6,0.15]
[1625147406297,4.7298,2116.5,2115.6,2.64973822]
[1625147406395,3.2112,2116.5,2115.6,2.64973822]
[1625147406546,3.2112,2116.5,2115.7,2.14600042]
[1625147406647,3.2112,2116.5,2116.0,7.08238]
[1625147407000,3.2112,2116.5,2115.8,2.64973822]
[1625147407333,3.5413096,2116.8,2115.8,2.64973822]
[1625147407434,3.5413096,2116.8,2115.8,2.59973822]
[1625147408136,3.5413096,2116.8,2115.8,9.68269822]
[1625147408585,3.54165,2116.7,2115.8,9.68269822]
[1625147408686,9.27665,2116.7,2115.8,9.68269822]
[1625147408786,10.54345,2116.7,2115.8,9.68269822]
[1625147409887,5.735,2116.7,2115.8,2.59973822]
[1625147409987,4.4633,2116.7,2115.8,2.59973822]
[1625147411877,9.08845,2116.7,2115.8,2.59973822]
[1625147412178,9.08845,2116.7,2115.8,9.68269822]
[1625147412626,10.22305,2116.7,2115.8,9.68269822]
[1625147412833,3.5419303,2116.5,2115.8,9.68269822]
[1625147412982,3.5419303,2116.5,2115.8,7.18296]
[1625147414078,3.5419303,2116.5,2115.8,9.68269822]
[1625147414277,10.4721,2116.9,2115.8,2.59973822]
[1625147414831,0.06,2116.8,2115.8,2.59973822]
[1625147414937,3.54165,2116.7,2115.8,9.68269822]
[1625147415129,9.17035,2116.7,2115.8,9.68269822]
[1625147415230,10.21145,2116.7,2115.8,9.68269822]
[1625147415429,0.12,2116.6,2115.8,9.68269822]
[1625147415779,3.6616363,2116.6,2115.8,9.68269822]
[1625147415880,3.5416363,2116.6,2115.8,9.68269822]
[1625147416139,1.6385,2116.7,2115.9,3.46]
[1625147416232,10.4721,2116.9,2115.9,5.93786515]
[1625147416379,10.4721,2116.9,2116.0,0.15]
[1625147416528,10.4721,2116.9,2116.0,2.64973822]
[1625147416781,10.4721,2116.9,2116.1,2.47786515]
[1625147416980,10.4721,2116.9,2116.2,0.15]
[1625147417079,13.6065092,2117.0,2116.2,0.15]
[1625147417440,3.5408092,2117.0,2116.4,7.08112]
[1625147417537,3.5408092,2117.0,2116.2,0.15]
[1625147417632,9.0124092,2117.0,2116.1,9.4415]
[1625147417782,9.0124092,2117.0,2116.3,0.15]
[1625147418732,6.6036092,2117.0,2116.3,7.23158]
[1625147419078,3.5408092,2117.0,2116.3,7.23158]
[1625147419182,3.5408092,2117.0,2116.3,9.73131822]
[1625147419946,10.6226892,2117.0,2116.3,9.73131822]
[1625147420138,3.5408092,2117.0,2116.3,9.73131822]
[1625147420693,3.54068,2117.2,2116.3,9.73131822]
[1625147420842,3.54068,2117.2,2116.3,16.27548337]
[1625147421742,4.7215548,2117.3,2116.3,16.27548337]
[1625147421835,13.89053,2117.5,2116.4,0.0659898]
[1625147421939,13.89053,2117.5,2116.5,3.46]
[1625147422038,13.89053,2117.5,2116.8,7.07986]
[1625147422136,3.54013,2117.5,2116.8,7.07986]
[1625147422338,3.54013,2117.5,2116.9,0.15]
[1625147423177,10.62061,2117.5,2116.9,0.15]
[1625147423378,3.54013,2117.5,2116.9,0.15]
[1625147424228,7.08069,2117.3,2116.9,0.15]
[1625147424680,3.54013,2117.5,2116.9,0.15]
[1625147425086,3.5403405,2117.4,2116.9,0.15]
[1625147426172,10.6207205,2117.4,2116.9,0.15]
[1625147426920,3.5403405,2117.4,2116.9,0.15]
[1625147429208,7.08076,2117.3,2116.9,0.15]
[1625147430522,7.13497906,2117.3,2116.9,0.15]
[1625147430925,3.59474906,2117.3,2116.9,0.15]
[1625147431074,6.18784906,2117.3,2116.9,0.15]
[1625147432188,7.08149,2117.1,2116.9,0.15]
[1625147433839,3.59474906,2117.3,2116.9,0.15]
[1625147435443,3.59474906,2117.3,2116.9,2.79302989]
[1625147435948,0.05421906,2117.3,2116.9,5.41696371]
[1625147436049,0.05421906,2117.3,2117.0,0.18]
[1625147436146,3.53953,2117.7,2117.0,0.18]
[1625147436246,3.53953,2117.7,2117.1,7.22817]
[1625147436346,3.53953,2117.7,2117.1,7.34817]
[1625147436584,3.53953,2117.7,2117.1,12.62923371]
[1625147437041,3.53953,2117.7,2117.2,0.05965503]
[1625147437292,3.53953,2117.7,2117.3,0.15]
[1625147438044,3.53953,2117.7,2116.7,0.18858514]
[1625147438146,3.5402557,2117.4,2117.1,0.15]
[1625147438393,10.62076,2117.3,2117.1,0.15]
[1625147438744,3.54024,2117.3,2117.1,0.15]
[1625147439597,7.07976,2117.7,2117.1,0.15]
[1625147440347,0.1,2117.6,2117.1,0.15]
[1625147440699,7.07976,2117.7,2117.1,0.15]
[1625147441302,3.53967,2117.7,2117.1,4.5908]
[1625147441406,3.53967,2117.7,2117.1,7.36792989]
[1625147441707,3.53967,2117.7,2117.1,17.07070371]
[1625147441803,3.53967,2117.7,2117.1,9.99186371]
[1625147442006,3.53967,2117.7,2117.1,4.5908]
[1625147443208,10.61932,2117.7,2117.1,4.5908]
[1625147443690,3.53967,2117.7,2117.1,4.5908]
[1625147443794,3.53967,2117.7,2117.1,9.99186371]
[1625147443891,3.53967,2117.7,2117.2,0.12]
[1625147444091,3.53967,2117.7,2117.3,0.15]
[1625147444895,4.71972,2118.0,2117.3,0.15]
[1625147444997,4.71972,2118.0,2117.3,2.92712989]
[1625147445249,11.79854,2118.0,2117.3,10.00556989]
[1625147445496,11.79854,2118.0,2117.3,2.92712989]
[1625147445936,4.71972,2118.0,2117.3,2.92712989]
[1625147446134,3.539477,2117.9,2117.3,2.92712989]
[1625147446837,21.0462,2118.2,2117.3,2.92712989]
[1625147446940,3.53948,2117.8,2117.3,2.92712989]
[1625147448088,3.53948,2117.8,2117.3,10.00578989]
[1625147448191,3.53948,2117.8,2117.3,12.63168932]
[1625147448439,3.53948,2117.8,2117.4,0.08]
[1625147448537,3.53948,2117.8,2117.4,5.1325]
[1625147448637,3.53948,2117.8,2117.5,0.15]
[1625147450546,3.5388,2118.1,2117.5,2.92712989]
[1625147450894,13.989692,2118.2,2117.5,0.15]
[1625147451646,7.07841,2118.1,2117.5,0.15]
[1625147451751,3.5392162,2118.0,2117.5,0.15]
[1625147451851,3.53917,2117.9,2117.4,6.5053]
[1625147451947,3.53917,2117.9,2117.4,1.4528]
[1625147452046,3.53917,2117.9,2117.2,9.58729]
[1625147452147,3.5392162,2118.0,2117.2,13.20569]
[1625147452596,3.5392162,2118.0,2117.2,15.98281989]
[1625147452751,3.5392162,2118.0,2117.3,0.04]
[1625147452948,3.5392162,2118.0,2117.4,0.15]
[1625147453092,3.5392162,2118.0,2117.4,2.92712989]
[1625147453189,3.5392162,2118.0,2117.5,0.04]
[1625147453340,3.5392162,2118.0,2117.5,0.19]
[1625147453441,3.4892162,2118.0,2117.5,0.19]
[1625147453544,3.4892162,2118.0,2117.6,2.77712989]
[1625147453642,3.4892162,2118.0,2117.6,2.81712989]
[1625147453844,3.53948,2117.7,2117.6,2.81712989]
[1625147454046,3.53948,2117.7,2117.6,0.04]
[1625147454145,3.53948,2117.7,2117.5,0.15]
[1625147455695,3.53948,2117.7,2117.5,0.05]
[1625147456196,3.57375062,2117.7,2117.5,0.05]
[1625147457892,0.03427062,2117.7,2117.5,0.05]
[1625147458296,0.03427062,2117.7,2117.6,0.04]
[1625147458391,3.53898,2118.0,2117.6,0.04]
[1625147458642,3.53898,2118.0,2117.7,0.15]
[1625147458743,3.53898,2118.0,2117.7,4.4755]
[1625147458948,11.7951,2118.6,2117.7,11.55264]
[1625147459046,4.7182666,2118.8,2117.7,11.55264]
[1625147459146,4.7182666,2118.8,2117.8,15.2]
[1625147459248,4.7182666,2118.8,2117.8,5.71997898]
[1625147459345,10.4031,2118.9,2117.9,0.29]
[1625147459698,10.4031,2118.9,2118.0,5.4320644]
[1625147459855,3.5374,2119.1,2118.1,3.61]
[1625147460103,3.5374,2119.1,2118.5,7.07417]
[1625147460204,24.69213,2119.4,2118.5,11.84467]
[1625147460305,14.32353,2119.4,2118.6,0.03843727]
[1625147460405,14.32353,2119.4,2118.6,2.90672003]
[1625147460503,10.7866,2119.4,2118.6,5.62050167]
[1625147461306,10.5051,2119.7,2118.9,7.07282]
[1625147461457,10.5466,2119.8,2119.0,5.05759155]
[1625147461554,3.53636,2119.9,2119.0,5.05759155]
[1625147462146,3.53636,2119.9,2119.1,2.0]
[1625147462217,10.48636,2119.9,2119.1,3.1308]
[1625147462315,10.48636,2119.9,2119.1,3.18483599]
[1625147462415,10.48636,2119.9,2119.3,7.07153]
[1625147462769,9.98636,2119.9,2119.3,7.07153]
[1625147462969,9.98636,2119.9,2119.2,0.15]
[1625147463067,9.98636,2119.9,2119.3,2.0]
[1625147463319,9.98636,2119.9,2119.4,0.15]
[1625147464674,9.98636,2119.9,2119.0,12.14283164]
[1625147464829,3.537077,2119.6,2119.1,0.15]
[1625147465120,0.03424716,2119.3,2118.6,0.15]
[1625147465203,0.15,2118.8,2118.6,0.15]
[1625147465299,3.678,2118.8,2117.9,11.78768]
[1625147465403,3.53814,2118.7,2118.3,0.15]
[1625147465500,3.52703019,2118.7,2118.0,0.15]
[1625147465897,7.0620545,2118.6,2118.0,0.15]
[1625147466001,7.0620545,2118.6,2117.5,10.4451]
[1625147466152,7.0620545,2118.6,2117.8,0.15]
[1625147466607,3.53877,2118.4,2117.8,0.15]
[1625147467057,7.0777727,2118.4,2117.8,0.15]
[1625147467207,3.68891,2118.8,2117.8,0.15]
[1625147467411,0.15,2118.8,2117.8,0.15]
[1625147468008,0.15,2118.8,2117.8,7.2266]
[1625147468411,3.5383,2118.7,2117.8,7.2266]
[1625147468584,6.8261,2118.7,2117.8,7.2266]
[1625147468714,6.8261,2118.7,2117.8,0.15]
[1625147469366,7.07737,2118.5,2117.8,0.15]
[1625147469480,3.5388688,2118.5,2117.8,0.15]
[1625147469817,3.5388688,2118.5,2117.5,0.01]
[1625147469968,3.5388688,2118.5,2117.5,0.16]
[1625147470915,3.53901,2118.4,2117.5,0.16]
[1625147471467,10.6166,2118.4,2117.5,7.23759]
[1625147471617,3.5388688,2118.5,2117.5,9.77737164]
[1625147472021,3.5388688,2118.5,2116.8,37.68494145]
[1625147472022,11.79768547,2118.5,2116.8,14.58012309]
[1625147472120,3.53965,2118.0,2116.8,2.53978164]
[1625147472224,9.24945,2118.0,2116.8,2.53978164]
[1625147472316,9.24945,2118.0,2116.4,5.44526451]
[1625147472317,3.2,2117.7,2116.4,5.44526451]
[1625147472420,3.20974762,2117.7,2116.4,3.72570431]
[1625147472517,13.22257166,2117.7,2116.4,3.72570431]
[1625147472619,13.22257166,2117.7,2116.4,3.58715192]
[1625147472715,13.22257166,2117.7,2116.1,0.15]
[1625147472716,10.15842144,2117.7,2116.1,0.15]
[1625147472819,7.08224,2116.9,2116.1,0.15]
[1625147472918,10.37374,2116.9,2116.1,0.15]
[1625147473653,10.36374,2116.9,2116.1,0.1]
[1625147474859,3.5416,2116.7,2116.1,0.1]
[1625147476510,10.62375,2116.7,2116.1,0.1]
[1625147476615,9.44298,2117.0,2116.1,0.1]
[1625147477161,3.54076,2117.2,2116.1,0.1]
[1625147477464,3.54076,2117.2,2116.1,2.41410461]
[1625147477565,7.08091,2117.1,2116.1,2.41410461]
[1625147477717,7.08091,2117.1,2116.1,17.41410461]
[1625147478006,7.08091,2117.1,2116.1,2.41410461]
[1625147479210,7.08091,2117.1,2116.1,9.49431461]
[1625147479361,7.08091,2117.1,2116.1,2.41410461]
[1625147479460,10.67701,2117.1,2116.1,2.41410461]
[1625147482096,10.71129619,2117.1,2116.1,2.41410461]
[1625147482598,7.11519619,2117.1,2116.1,2.41410461]
[1625147482752,0.03428619,2117.1,2116.2,2.21054843]
[1625147482899,0.03428619,2117.1,2116.2,7.83414843]
[1625147482998,0.03428619,2117.1,2116.3,3.61]
[1625147483124,7.08026,2117.4,2116.3,5.92410461]
[1625147483314,7.08026,2117.4,2116.3,8.13465304]
[1625147483819,10.9493,2117.8,2116.3,8.13465304]
[1625147483969,11.80465,2117.6,2116.4,7.20156406]
[1625147484115,11.80465,2117.6,2116.5,0.15]
[1625147484217,11.80465,2117.6,2116.5,2.46410461]
[1625147485221,7.08026,2117.4,2116.5,2.46410461]
[1625147485761,14.55068,2117.7,2116.5,2.46410461]
[1625147485859,14.55068,2117.7,2116.6,0.08]
[1625147486011,14.55068,2117.7,2116.7,0.15]
[1625147486517,3.5402329,2117.5,2116.7,0.15]
[1625147486670,3.5402329,2117.5,2116.2,1.1341]
[1625147486762,3.5402329,2117.5,2116.5,0.15]
[1625147487512,7.08097,2117.1,2116.5,0.15]
[1625147492766,10.82947,2117.1,2116.5,0.15]
[1625147492868,3.54094,2116.9,2116.2,1.1341]
[1625147493870,10.40014,2116.6,2116.2,1.1341]
[1625147494878,3.54188,2116.5,2116.2,1.1341]
[1625147495219,10.62493,2116.5,2116.2,1.1341]
[1625147496117,10.36986878,2116.5,2116.2,1.1341]
[1625147497160,10.36986878,2116.5,2116.2,2.07540544]
[1625147497261,3.5411365,2116.8,2116.2,1.1341]
[1625147497362,3.5411365,2116.8,2116.3,0.15]
[1625147497513,10.8126,2117.0,2116.3,0.15]
[1625147497613,3.54094,2117.1,2116.4,0.06]
[1625147497816,3.54094,2117.1,2116.3,2.31410461]
[1625147497962,3.54094,2117.1,2116.2,1.1341]
[1625147497963,9.69614,2117.1,2116.2,1.2841]
[1625147498111,10.62384,2116.7,2116.2,1.2841]
[1625147498210,14.1650004,2116.7,2116.2,1.2841]
[1625147499362,7.0823804,2116.7,2116.2,1.2841]
[1625147501260,7.08264,2116.5,2116.2,1.2841]
[1625147501508,7.0823804,2116.7,2116.2,1.2841]
[1625147501812,3.5411604,2116.7,2116.2,1.2841]
[1625147501972,31.02323,2117.2,2116.2,3.59820461]
[1625147502063,31.02323,2117.2,2116.2,5.8246884]
[1625147502160,3.5403691,2117.1,2116.3,0.08]
[1625147502312,10.6211091,2117.1,2116.5,11.22972]
[1625147502558,10.6211091,2117.1,2116.5,4.1495]
[1625147502658,10.6211091,2117.1,2116.6,0.15]
[1625147502857,14.1616791,2117.1,2116.6,0.15]
[1625147505984,7.08092,2117.5,2116.6,5.00650032]
[1625147506074,7.08092,2117.5,2116.8,3.46]
[1625147506075,3.5400268,2117.4,2116.8,3.46]
[1625147506179,10.8916,2117.7,2117.4,3.46]
[1625147506280,15.4006682,2117.8,2117.4,3.46]
[1625147506379,15.4006682,2117.8,2117.4,8.1813]
[1625147506474,16.52258,2117.9,2117.5,0.15]
[1625147506679,4.72015,2117.9,2117.5,0.15]
[1625147506778,21.1764952,2118.4,2117.5,0.15]
[1625147506779,3.5389942,2118.1,2117.5,0.15]
[1625147506877,3.5389942,2118.1,2117.5,3.0594119]
[1625147506977,7.07789,2118.2,2117.5,3.0594119]
[1625147507078,11.79889,2118.6,2117.5,3.0594119]
[1625147507178,3.53904,2118.5,2117.6,0.10392011]
[1625147507276,3.53904,2118.5,2117.5,3.0594119]
[1625147507383,3.53904,2118.5,2117.5,2.94878569]
[1625147507478,0.08,2118.4,2117.7,0.15]
[1625147507579,0.08,2118.4,2117.5,2.9094119]
[1625147507729,0.08,2118.4,2117.8,0.15]
[1625147508275,7.07816,2118.2,2117.8,0.15]
[1625147511523,7.0778423,2118.5,2117.8,0.15]
[1625147511624,14.1555223,2118.5,2117.8,0.15]
[1625147511972,7.0778423,2118.5,2117.8,0.15]
[1625147513113,7.07792,2118.3,2117.8,0.15]
[1625147513366,0.1,2118.2,2117.8,0.15]
[1625147513820,7.0778423,2118.5,2117.8,0.15]
[1625147514964,7.07843,2118.2,2117.8,0.15]
[1625147516467,6.96045282,2118.2,2117.8,0.15]
[1625147516718,7.0778423,2118.5,2117.8,0.15]
[1625147518178,7.07793,2118.3,2117.8,0.15]
[1625147520930,10.4058,2118.7,2117.8,0.15]
[1625147521027,10.6160023,2118.5,2117.8,3.0594119]
[1625147521579,20.7249,2118.9,2117.8,3.0594119]
[1625147522182,27.80104,2118.9,2117.8,10.1358719]
[1625147522831,27.80104,2118.9,2117.8,3.0594119]
[1625147522928,27.80104,2118.9,2117.8,0.15]
[1625147523083,31.3394409,2118.9,2117.8,0.15]
[1625147523180,24.2633009,2118.9,2117.8,0.15]
[1625147523721,24.2633009,2118.9,2117.8,2.87300849]
[1625147524123,7.07649,2118.8,2117.8,9.94949849]
[1625147525236,20.7249,2118.9,2117.8,2.87300849]
[1625147525338,10.392,2118.9,2117.8,2.87300849]
[1625147525437,11.79678,2119.0,2117.8,2.87300849]
[1625147525589,13.8643353,2119.3,2117.8,5.43206086]
[1625147525683,13.8643353,2119.3,2117.9,3.52953607]
[1625147525926,13.8643353,2119.3,2118.0,0.15]
[1625147525927,13.8643353,2119.3,2118.0,6.79285237]
[1625147526075,13.8643353,2119.3,2118.2,3.46]
[1625147526230,10.9522,2119.4,2118.5,7.07388]
[1625147526327,10.9522,2119.4,2118.5,3.37]
[1625147526424,10.9522,2119.4,2118.5,7.76197577]
[1625147526578,10.9522,2119.4,2118.6,0.15]
[1625147526678,10.9522,2119.4,2118.6,2.87300849]
[1625147526873,20.4192,2119.7,2118.6,2.87300849]
[1625147526973,20.4192,2119.7,2118.7,0.0749771]
[1625147527225,10.4889,2119.9,2118.8,0.15]
[1625147527324,10.6295,2120.0,2118.8,9.94584849]
[1625147527325,17.70193,2120.0,2118.8,9.94584849]
[1625147527424,17.70193,2120.0,2118.9,0.09733664]
[1625147527579,17.70193,2120.0,2119.0,0.15]
[1625147527680,17.70193,2120.0,2119.0,2.87300849]
[1625147527773,17.70193,2120.0,2119.0,6.70220849]
[1625147528139,17.76193,2120.0,2119.0,6.70220849]
[1625147528339,17.79616918,2120.0,2119.1,0.04635585]
[1625147528541,17.79616918,2120.0,2119.2,0.15]
[1625147528642,17.73616918,2120.0,2119.2,0.15]
[1625147528745,17.73616918,2120.0,2119.0,3.84350849]
[1625147528845,17.73616918,2120.0,2119.2,0.15]
[1625147529146,7.10666918,2120.0,2119.1,4.3986]
[1625147529245,7.10666918,2120.0,2119.2,0.15]
[1625147529342,0.03423918,2120.0,2119.2,0.15]
[1625147529442,0.04,2119.9,2119.2,0.15]
[1625147530197,7.07299,2119.9,2119.2,0.15]
[1625147531778,0.03423918,2120.0,2119.2,0.15]
[1625147531876,0.03423918,2120.0,2119.2,3.3123]
[1625147534037,0.03423918,2120.0,2119.2,6.03530849]
[1625147535100,7.07277,2119.9,2119.2,6.03530849]
[1625147538580,10.6091423,2119.9,2119.2,6.03530849]
[1625147538682,3.5363723,2119.9,2119.2,6.03530849]
[1625147540281,7.07275,2119.7,2119.2,6.03530849]
[1625147543593,3.5363723,2119.9,2119.2,6.03530849]
[1625147544085,3.5363723,2119.9,2119.2,3.3123]
[1625147544187,0.14,2119.8,2119.2,3.1623]
[1625147544334,0.14,2119.8,2119.1,2.0907]
[1625147544536,3.5363723,2119.9,2119.1,2.0907]
[1625147544836,3.5363723,2119.9,2119.0,0.15]
[1625147545792,7.07352,2119.5,2119.0,0.15]
[1625147546890,9.43114,2119.7,2119.0,0.15]
[1625147551031,0.03423918,2119.8,2119.0,9.94551849]
[1625147551434,0.03423918,2119.8,2119.0,2.87300849]
[1625147553189,7.10664918,2119.8,2119.0,9.94575849]
[1625147555865,7.10664918,2119.8,2119.1,3.53613]
[1625147555964,7.10664918,2119.8,2119.1,4.58673]
[1625147556162,7.10664918,2119.8,2119.2,0.15]
[1625147556361,7.10664918,2119.8,2119.2,4.3301]
[1625147557117,7.10664918,2119.8,2119.3,2.72300849]
[1625147557118,0.03423918,2119.8,2119.3,2.72300849]
[1625147557216,0.03423918,2119.8,2119.3,2.78300849]
[1625147557393,4.2,2121.0,2119.4,3.61]
[1625147557491,4.2,2121.0,2119.5,0.23038355]
[1625147557591,43.5944,2121.1,2119.5,0.23038355]
[1625147557692,43.5944,2121.1,2119.6,0.15]
[1625147557791,43.5944,2121.1,2119.7,0.11280542]
[1625147557895,3.53503,2121.0,2119.9,3.53473]
[1625147558245,0.06,2120.9,2119.9,3.53473]
[1625147558347,9.42808,2120.8,2120.0,7.06945]
[1625147558452,0.06,2120.9,2120.0,7.21945]
[1625147558546,44.47717,2121.1,2120.0,7.21945]
[1625147558696,44.47717,2121.1,2120.1,2.85195682]
[1625147558994,44.47717,2121.1,2120.2,0.15]
[1625147559093,44.47717,2121.1,2120.2,4.2266]
[1625147559196,33.50887,2121.1,2120.2,4.2266]
[1625147559445,7.06875,2120.9,2120.3,7.06831]
[1625147559686,7.06875,2120.9,2120.2,4.2266]
[1625147559687,7.06875,2120.9,2120.2,4.0766]
[1625147559782,0.06,2120.8,2120.4,0.15]
[1625147560532,0.06,2120.8,2120.2,4.0766]
[1625147560683,33.50887,2121.1,2120.3,0.15]
[1625147560984,7.06904,2120.9,2120.3,0.15]
[1625147562147,21.7234,2121.1,2120.3,0.15]
[1625147563198,33.50887,2121.1,2120.3,0.15]
[1625147563294,21.7234,2121.1,2120.3,0.15]
[1625147564160,21.7234,2121.1,2120.3,2.96870202]
[1625147564451,10.7444,2121.1,2120.3,2.96870202]
[1625147564552,17.81269,2121.1,2120.3,10.03720202]
[1625147564701,17.81269,2121.1,2120.3,2.96870202]
[1625147565708,17.81269,2121.1,2120.3,10.03716202]
[1625147566421,17.81269,2121.1,2120.3,2.96870202]
[1625147569545,7.06829,2121.1,2120.3,6.50278202]
[1625147569645,6.63388,2121.6,2120.4,0.12018323]
[1625147569794,3.53388,2121.6,2120.4,0.22018323]
[1625147569991,3.53388,2121.6,2120.5,5.4598829]
[1625147570093,3.53388,2121.6,2120.7,7.06708]
[1625147570094,9.42354,2121.5,2120.7,7.06708]
[1625147570198,3.53388,2121.6,2120.7,11.80888]
[1625147570362,3.53388,2121.6,2120.8,0.15]
[1625147570464,3.53388,2121.6,2120.8,2.96870202]
[1625147571354,7.06753,2121.3,2120.8,0.15]
[1625147571705,7.01753,2121.3,2120.8,0.15]
[1625147572408,7.01753,2121.3,2120.7,4.7418]
[1625147572510,7.01753,2121.3,2120.5,0.15]
[1625147572608,0.16,2121.2,2120.2,0.15]
[1625147572809,0.16,2121.2,2120.2,0.1]
[1625147573006,9.42376,2121.5,2120.2,0.1]
[1625147573673,3.5347,2121.1,2120.2,0.1]
[1625147574273,7.06939,2120.8,2120.2,0.1]
[1625147574829,3.5347,2121.1,2120.2,4.8458]
[1625147575723,7.06878,2121.0,2120.2,11.91465]
[1625147575871,7.06878,2121.0,2120.2,8.38008]
[1625147576272,19.96246,2121.5,2120.2,8.38008]
[1625147576472,19.96246,2121.5,2120.5,3.53388]
[1625147576572,9.42376,2121.5,2120.5,3.53388]
[1625147576672,9.42376,2121.5,2120.6,0.15]
[1625147576874,7.06749,2121.4,2120.6,7.21735]
[1625147580655,10.60174,2121.4,2120.6,0.15]
[1625147580759,0.08,2121.3,2120.6,0.15]
[1625147581205,3.53425,2121.4,2120.6,0.15]
[1625147581758,7.06813,2121.2,2120.6,0.15]
[1625147584749,0.04,2121.1,2120.6,0.15]
[1625147584897,0.04,2121.1,2120.3,0.15]
[1625147585047,7.06929,2120.8,2120.3,0.15]
[1625147586302,9.42568,2121.0,2120.3,0.15]
[1625147587224,7.06937,2120.7,2120.3,0.15]
[1625147587824,7.06937,2120.7,2120.0,7.06921]
[1625147587930,7.06937,2120.7,2120.0,0.15]
[1625147588131,3.4542,2120.6,2119.7,0.15]
[1625147588232,3.46390972,2120.6,2119.7,0.15]
[1625147588328,0.2,2120.5,2119.7,0.15]
[1625147588531,7.0715,2120.1,2119.7,0.15]
[1625147588630,11.2696,2120.1,2119.7,0.15]
[1625147589113,3.2,2119.9,2119.7,0.15]
[1625147589209,3.2,2119.9,2119.1,0.15]
[1625147589355,0.2,2119.8,2119.1,0.15]
[1625147589555,7.07402,2119.3,2119.1,0.15]
[1625147589658,11.51212,2119.3,2119.1,0.15]
[1625147589756,11.51212,2119.3,2118.8,0.15]
[1625147589954,0.06,2119.2,2118.8,0.15]
[1625147590264,4.4381,2119.3,2118.8,0.15]
[1625147590410,4.4381,2119.3,2118.5,0.15]
[1625147590608,4.46291179,2119.3,2118.5,0.15]
[1625147590759,4.46291179,2119.3,2118.0,0.02229427]
[1625147590760,7.1285,2118.6,2118.2,0.15]
[1625147591432,4.32930747,2118.6,2118.2,0.15]
[1625147591631,0.04,2118.5,2118.2,0.15]
[1625147591729,7.07745,2118.4,2118.2,0.15]
[1625147591831,1.6916,2118.5,2118.2,0.15]
[1625147591979,1.6516,2118.5,2118.2,0.15]
[1625147593396,7.10940747,2118.6,2118.2,0.15]
[1625147593496,4.32930747,2118.6,2118.2,0.15]
[1625147594404,3.9285,2118.6,2118.2,3.08961595]
[1625147594501,51.29612,2119.2,2118.2,3.08961595]
[1625147594650,21.4023,2119.2,2118.2,3.08961595]
[1625147594805,10.5113,2119.2,2118.2,3.08961595]
[1625147595254,31.0471,2119.8,2118.2,3.08961595]
[1625147595362,31.0471,2119.8,2118.3,0.12750755]
[1625147595507,31.0471,2119.8,2118.8,11.43713]
[1625147595508,21.008,2119.8,2118.8,11.43713]